bitfinex/quotes_SOLUSD_20250924
["timestamp","ask_amount","ask_price","bid_price","bid_amount"]
[1758684307558,0.67,212.37,212.28,4.71075937]
[1758684308258,5.37878624,212.37,212.28,4.71075937]
[1758684308462,0.2,212.38,212.29,13.59559401]
[1758684308666,0.2,212.38,212.3,0.68]
[1758684309055,26.0,212.37,212.3,0.68]
[1758684309252,26.67,212.37,212.29,13.59559401]
[1758684309477,31.37878487,212.37,212.28,4.71075937]
[1758684309651,26.67,212.37,212.29,0.68]
[1758684309846,0.2,212.38,212.29,0.68]
[1758684310369,0.67,212.37,212.28,4.71075937]
[1758684310554,26.0,212.36,212.28,4.71075937]
[1758684311157,30.70904442,212.36,212.27,18.3065753]
[1758684311359,30.70904442,212.36,212.27,30.08402854]
[1758684311986,26.0,212.36,212.27,30.08402854]
[1758684312278,26.0,212.34,212.26,4.71119378]
[1758684312647,9.13465633,212.38,212.27,13.59559401]
[1758684312864,26.0,212.35,212.28,0.68]
[1758684313185,26.0,212.35,212.27,13.59559401]
[1758684313361,30.70934392,212.35,212.28,4.71075937]
[1758684313685,30.70934392,212.35,212.27,4.71097722]
[1758684313850,0.68,212.36,212.28,13.59559401]
[1758684314252,0.2,212.38,212.3,13.59559401]
[1758684314557,0.2,212.38,212.32,13.59559401]
[1758684315186,0.2,212.38,212.33,0.66]
[1758684315355,0.2,212.38,212.3,14.25559401]
[1758684316056,4.90856897,212.38,212.3,14.25559401]
[1758684317180,4.90856897,212.38,212.31,4.71009373]
[1758684318184,8.46456586,212.38,212.31,4.71009373]
[1758684318866,8.46456586,212.38,212.32,0.66]
[1758684318867,0.2,212.38,212.32,0.66]
[1758684319184,0.2,212.38,212.33,13.59559401]
[1758684319406,0.2,212.38,212.35,13.59559401]
[1758684319764,0.2,212.38,212.36,0.66]
[1758684319964,0.2,212.38,212.37,0.66]
[1758684320360,0.2,212.38,212.37,5.368763]
[1758684321880,0.2,212.38,212.37,18.96435701]
[1758684322060,0.2,212.38,212.35,4.70898706]
[1758684322388,0.2,212.38,212.35,5.39898706]
[1758684322579,0.2,212.38,212.36,0.69]
[1758684322760,0.2,212.38,212.35,4.70898706]
[1758684322965,0.2,212.38,212.35,5.39898706]
[1758684323590,0.2,212.38,212.36,0.69]
[1758684323775,0.2,212.38,212.37,0.69]
[1758684324391,0.2,212.38,212.37,5.398763]
[1758684325167,0.2,212.39,212.37,5.398763]
[1758684325490,0.2,212.39,212.38,14.28559401]
[1758684326569,1e-08,212.39,212.38,18.9941353]
[1758684327675,0.66,212.54,212.39,13.59559401]
[1758684327869,3.55599689,212.55,212.39,13.59559401]
[1758684327870,3.55599689,212.49,212.39,0.69]
[1758684328092,4.21599689,212.49,212.39,42.49]
[1758684328295,4.21599689,212.49,212.4,13.59559401]
[1758684328883,3.55599689,212.48,212.41,4.70787627]
[1758684329394,0.66,212.49,212.41,4.70787627]
[1758684329693,4.21599689,212.49,212.41,4.57722727]
[1758684330201,0.66,212.49,212.41,16.34691796]
[1758684330503,4.21599689,212.49,212.41,16.34691796]
[1758684330681,3.55599689,212.49,212.41,17.03691796]
[1758684330997,26.0,212.51,212.42,13.59559401]
[1758684331291,0.66,212.52,212.42,14.28559401]
[1758684331512,4.21599689,212.52,212.42,14.28559401]
[1758684331998,0.66,212.52,212.42,14.28559401]
[1758684332204,3.55599689,212.53,212.44,13.59559401]
[1758684332382,3.55599689,212.53,212.46,13.59559401]
[1758684333579,3.55599689,212.53,212.47,4.7065468]
[1758684333989,3.55599689,212.54,212.47,4.7065468]
[1758684334194,3.55599689,212.52,212.45,5.39688555]
[1758684334390,0.66,212.51,212.42,13.59559401]
[1758684334909,26.0,212.52,212.44,13.59559401]
[1758684335082,3.55599689,212.53,212.44,13.59559401]
[1758684335504,0.66,212.54,212.45,4.70698987]
[1758684335816,26.0,212.54,212.46,0.69]
[1758684336000,3.55599689,212.53,212.46,14.28559401]
[1758684336610,4.21599689,212.53,212.45,4.70698987]
[1758684337412,4.21599689,212.53,212.45,5.39698987]
[1758684337701,4.21599689,212.53,212.45,17.16446456]
[1758684338116,26.0,212.5,212.43,13.59559401]
[1758684338403,3.55599689,212.51,212.43,14.28559401]
[1758684339102,0.66,212.52,212.43,14.28559401]
[1758684339304,3.55599689,212.52,212.44,0.69]
[1758684339788,8.26145813,212.52,212.45,4.70698987]
[1758684339992,26.0,212.53,212.45,4.70698987]
[1758684340193,3.55599689,212.54,212.46,14.28559401]
[1758684340708,5.36478401,212.55,212.46,14.28559401]
[1758684341008,3.55599689,212.52,212.44,13.59559401]
[1758684341592,3.55599689,212.52,212.45,0.69]
[1758684342584,34.2614736,212.52,212.4,11.77003427]
[1758684342792,34.9214736,212.52,212.41,14.28559401]
[1758684343110,34.9214736,212.52,212.43,13.59559401]
[1758684343300,34.9214736,212.52,212.44,0.69]
[1758684344804,34.9214736,212.52,212.45,4.70698987]
[1758684345110,26.0,212.52,212.46,0.69]
[1758684345491,3.55599689,212.53,212.46,0.69]
[1758684346192,0.66,212.55,212.46,0.69]
[1758684346704,4.21599689,212.55,212.46,0.69]
[1758684346904,30.21599689,212.55,212.46,0.69]
[1758684347399,34.9208617,212.55,212.47,4.7065468]
[1758684350504,31.36486481,212.55,212.47,4.7065468]
[1758684350710,8.26100612,212.54,212.47,4.7065468]
[1758684351693,0.68,212.53,212.47,4.7065468]
[1758684352221,26.0,212.52,212.47,4.7065468]
[1758684352402,26.0,212.52,212.48,0.71]
[1758684352797,26.0,212.52,212.49,4.70610381]
[1758684353391,26.0,212.52,212.48,4.70631722]
[1758684354197,5.38508905,212.54,212.48,4.70631722]
[1758684354389,34.94108594,212.54,212.46,18.30236234]
[1758684354595,32.86206192,212.54,212.46,18.30236234]
[1758684355290,26.68,212.54,212.46,30.06928317]
[1758684355489,26.0,212.54,212.47,0.71]
[1758684356800,30.70510226,212.54,212.47,0.71]
[1758684357735,30.70510226,212.54,212.48,4.7063253]
[1758684359689,26.0,212.54,212.48,4.7063253]
[1758684359889,26.0,212.51,212.45,13.59559401]
[1758684360097,26.68,212.51,212.45,13.59559401]
[1758684360322,0.68,212.51,212.45,13.59559401]
[1758684360908,26.0,212.52,212.45,14.30559401]
[1758684361114,26.0,212.54,212.46,0.71]
[1758684361325,26.0,212.54,212.47,4.7065468]
[1758684361509,26.0,212.54,212.48,13.59559401]
[1758684361715,26.0,212.53,212.48,13.59559401]
[1758684362226,26.0,212.53,212.48,14.30559401]
[1758684362630,26.0,212.53,212.49,4.70610381]
[1758684364713,6.86174948,212.55,212.49,4.70610381]
[1758684365522,5.38477661,212.55,212.49,4.70610381]
[1758684366118,134.78,212.58,212.49,16.47136335]
[1758684366310,134.78,212.58,212.43,40.36]
[1758684366505,1.47697287,212.54,212.32,23.54872237]
[1758684366737,2.30802501,212.46,212.33,0.71]
[1758684366938,40.44,212.45,212.33,0.71]
[1758684367437,2.30802501,212.44,212.33,0.71]
[1758684368204,2.30802501,212.43,212.35,13.59559401]
[1758684368401,2.30802501,212.43,212.36,0.71]
[1758684368839,26.0,212.41,212.34,4.70942827]
[1758684369023,28.30802501,212.41,212.34,4.70942827]
[1758684369210,26.0,212.41,212.34,4.70942827]
[1758684370033,28.30802501,212.41,212.34,4.70942827]
[1758684370422,2.30802501,212.41,212.34,4.70942827]
[1758684370623,2.30802501,212.39,212.34,4.70942827]
[1758684370937,4.70792446,212.41,212.3,13.59559401]
[1758684370938,2.30802501,212.37,212.32,4.7096826]
[1758684371839,2.30802501,212.37,212.31,0.71]
[1758684372042,2.30802501,212.36,212.31,4.70999941]
[1758684372420,2.98802501,212.36,212.31,4.70999941]
[1758684372635,2.98802501,212.36,212.3,4.71031559]
[1758684372935,2.30802501,212.36,212.3,4.71031559]
[1758684373119,2.30802501,212.37,212.3,4.71031559]
[1758684373649,28.30802501,212.4,212.31,0.7]
[1758684373815,2.30802501,212.4,212.31,0.7]
[1758684374009,42.52802501,212.4,212.31,0.7]
[1758684374221,2.30802501,212.32,212.23,13.59559401]
[1758684374428,134.61,212.39,212.22,0.7]
[1758684374429,2.30802501,212.28,212.22,0.7]
[1758684374630,2.30802501,212.26,212.2,4.71248477]
[1758684374817,2.30802501,212.25,212.2,4.71248477]
[1758684375022,2.30802501,212.24,212.19,0.8]
[1758684375218,0.71,212.25,212.19,5.51273714]
[1758684375434,2.30802501,212.25,212.19,5.51273714]
[1758684377236,30.71106547,212.27,212.19,5.51273714]
[1758684377410,2.30802501,212.25,212.19,5.51273714]
[1758684377739,2.30802501,212.23,212.19,0.1]
[1758684377922,2.30802501,212.22,212.19,0.1]
[1758684378317,2.30802501,212.23,212.2,0.7]
[1758684378547,2.30802501,212.23,212.21,0.7]
[1758684378931,2.30802501,212.23,212.19,5.51269592]
[1758684379119,2.30802501,212.23,212.2,0.7]
[1758684379832,2.30802501,212.23,212.2,5.41234327]
[1758684380034,2.30802501,212.21,212.19,0.1]
[1758684380228,2.30802501,212.21,212.19,4.81271087]
[1758684380537,2.30802501,212.21,212.19,5.47271087]
[1758684380749,2.30802501,212.22,212.19,5.47271087]
[1758684381121,2.30802501,212.23,212.2,5.37234324]
[1758684381524,2.30802501,212.23,212.2,0.66]
[1758684382042,2.30802501,212.22,212.2,0.66]
[1758684382243,2.30802501,212.22,212.2,5.37252283]
[1758684383428,2.30802501,212.22,212.12,0.1]
[1758684383429,26.0,212.25,211.73,23.28108755]
[1758684383430,4.61605002,212.21,211.73,23.28108755]
[1758684383743,4.61605002,212.21,211.99,0.66]
[1758684383744,2.30802501,212.01,211.99,0.66]
[1758684384545,2.30802501,212.01,211.87,40.68]
[1758684384845,40.18741576,212.04,211.96,0.66]
[1758684384846,2.30802501,211.97,211.96,0.66]
[1758684385022,40.18741576,212.04,211.96,0.66]
[1758684385223,2.30802501,211.97,211.96,0.66]
[1758684386029,26.0,212.0,211.96,0.66]
[1758684386242,2.30802501,211.97,211.96,0.66]
[1758684386626,5.46959867,211.97,211.96,0.66]
[1758684387133,26.0,212.01,211.96,0.66]
[1758684387653,5.46959867,211.97,211.91,13.59559401]
[1758684387826,5.46959867,211.94,211.91,13.59559401]
[1758684388028,5.46959867,211.94,211.92,0.66]
[1758684389359,5.46959867,211.94,211.93,4.71853914]
[1758684389556,5.46959867,211.94,211.93,5.37853914]
[1758684391454,14.18741576,212.04,211.93,17.17488699]
[1758684391755,5.46959867,211.96,211.94,0.66]
[1758684392127,40.18741576,212.04,211.94,0.66]
[1758684392331,18.30790728,212.21,211.95,13.59559401]
[1758684392645,5.46959867,212.03,211.97,13.59559401]
[1758684392846,5.46959867,212.03,211.98,0.66]
[1758684393538,26.0,212.08,211.99,16.51021274]
[1758684393736,5.46959867,212.02,212.0,0.66]
[1758684393931,5.46959867,212.04,212.0,0.66]
[1758684394754,5.46959867,212.04,212.01,16.50865524]
[1758684395052,5.46959867,212.04,212.02,0.66]
[1758684395256,5.46959867,212.04,212.03,0.66]
[1758684396549,5.46959867,212.06,212.03,0.66]
[1758684396745,5.46959867,212.06,212.04,0.66]
[1758684397252,5.46959867,212.05,212.04,0.66]
[1758684397432,5.46959867,212.05,212.02,0.66]
[1758684397636,5.46959867,212.03,211.98,17.1709916]
[1758684397839,5.46959867,211.99,211.98,4.71742617]
[1758684398034,26.0,212.06,211.98,4.71742617]
[1758684398238,5.46959867,211.99,211.98,4.71742617]
[1758684398754,5.46959867,211.99,211.96,4.71787129]
[1758684398957,5.46959867,211.99,211.96,5.37787129]
[1758684399156,5.46959867,211.99,211.97,0.66]
[1758684399452,5.46959867,211.99,211.95,0.66]
[1758684399656,5.46959867,211.98,211.97,0.66]
[1758684400070,5.46959867,211.98,211.94,0.66]
[1758684400268,5.46959867,211.98,211.95,0.66]
[1758684400437,5.46959867,211.98,211.96,0.66]
[1758684400752,5.46959867,211.98,211.97,4.71764872]
[1758684402266,5.46959867,211.98,211.97,5.37764872]
[1758684402635,5.46959867,211.98,211.97,4.71764872]
[1758684402852,5.46959867,211.98,211.97,5.37764872]
[1758684403363,5.46959867,211.98,211.71,145.29191613]
[1758684403364,5.46959867,211.98,211.92,0.66]
[1758684403546,4.71675864,212.01,211.89,0.66]
[1758684403747,5.46959867,211.91,211.89,0.66]
[1758684403947,5.46959867,211.91,211.86,17.18034361]
[1758684404149,5.46959867,211.87,211.86,5.38009817]
[1758684404336,5.46959867,211.87,211.83,0.66]
[1758684404536,5.46959867,211.85,211.84,0.66]
[1758684404738,5.46959867,211.85,211.82,16.5234633]
[1758684405042,5.46959867,211.85,211.83,0.66]
[1758684405546,5.46959867,211.85,211.82,4.72098951]
[1758684405862,5.46959867,211.83,211.82,4.72098951]
[1758684406158,5.46959867,211.85,211.82,17.1834633]
[1758684406333,5.46959867,211.85,211.83,0.66]
[1758684406858,5.46959867,211.85,211.79,11.80390215]
[1758684407051,5.46959867,211.83,211.8,0.66]
[1758684407439,5.46959867,211.83,211.79,11.80390215]
[1758684407634,5.46959867,211.83,211.8,0.66]
[1758684407855,5.46959867,211.83,211.81,0.66]
[1758684408053,5.46959867,211.83,211.82,0.66]
[1758684408443,5.46959867,211.86,211.82,0.66]
[1758684408778,26.0,211.94,211.82,0.66]
[1758684408779,5.46959867,211.9,211.82,0.66]
[1758684409066,19.06519268,212.04,211.83,16.52268328]
[1758684409067,15.64258744,211.98,211.83,16.52268328]
[1758684409275,5.46959867,211.94,211.84,0.66]
[1758684409859,5.46959867,211.96,211.85,13.59559401]
[1758684410063,5.46959867,211.94,211.86,0.66]
[1758684410869,26.0,211.97,211.76,23.61061776]
[1758684411163,5.46959867,211.83,211.78,0.72]
[1758684411365,26.0,211.93,211.78,0.72]
[1758684411366,5.46959867,211.81,211.78,0.72]
[1758684411671,5.46959867,211.85,211.79,0.72]
[1758684412246,5.46959867,211.85,211.8,4.72143531]
[1758684413771,5.46959867,211.85,211.8,5.44143531]
[1758684414062,5.46959867,211.86,211.81,0.72]
[1758684414269,5.46959867,211.86,211.83,4.72076665]
[1758684415191,5.46959867,211.88,211.83,5.44076665]
[1758684416590,5.46959867,211.86,211.83,4.72076665]
[1758684417080,30.71884152,211.92,211.8,4.72132132]
[1758684417285,5.46959867,211.87,211.83,0.72]
[1758684417582,5.46959867,211.93,211.84,5.4405438]
[1758684417880,5.46959867,211.99,211.86,13.59559401]
[1758684418176,5.46959867,211.99,211.87,0.72]
[1758684418776,14.19077127,212.05,211.87,0.72]
[1758684418954,5.46959867,212.02,211.87,0.72]
[1758684419152,5.46959867,212.01,211.87,0.72]
[1758684419373,14.19010004,212.07,211.87,0.72]
[1758684419374,59.10556435,212.07,211.89,16.51800462]
[1758684419578,5.46959867,212.02,211.9,0.72]
[1758684419880,5.46959867,212.03,211.9,0.72]
[1758684420056,5.46959867,212.04,211.9,0.72]
[1758684420459,5.46959867,212.03,211.9,0.72]
[1758684420675,44.9154379,212.07,211.9,0.72]
[1758684420982,5.46959867,212.02,211.9,0.72]
[1758684421160,5.46959867,212.03,211.9,0.72]
[1758684421359,5.46959867,212.03,211.91,40.11136802]
[1758684421575,5.46959867,212.03,211.92,0.72]
[1758684422581,5.46959867,212.03,211.93,16.51488699]
[1758684422759,5.46959867,212.03,211.94,0.72]
[1758684422965,5.46959867,212.02,211.94,0.72]
[1758684423162,5.46959867,212.0,211.93,16.51488699]
[1758684423373,5.46959867,211.99,211.93,16.51488699]
[1758684423564,26.0,212.04,211.93,16.51488699]
[1758684423786,5.46959867,212.0,211.93,16.51488699]
[1758684423985,26.0,212.04,211.93,4.71853914]
[1758684424182,5.46959867,211.97,211.93,4.71853914]
[1758684424574,5.46959867,211.97,211.9,16.51721167]
[1758684424882,5.46959867,212.0,211.9,16.51721167]
[1758684425062,5.46959867,212.01,211.91,0.72]
[1758684425883,5.46959867,211.98,211.9,16.51721167]
[1758684426090,5.46959867,211.97,211.9,16.51721167]
[1758684426262,4.71613438,212.04,211.9,16.51721167]
[1758684426263,5.46959867,211.96,211.9,16.51721167]
[1758684426582,3.56871934,211.98,211.9,16.51721167]
[1758684427275,3.56871934,211.97,211.9,16.51721167]
[1758684427968,3.56871934,211.98,211.9,0.72]
[1758684428982,3.56871934,211.98,211.91,16.51644565]
[1758684429464,30.71675864,212.01,211.89,4.71921679]
[1758684429667,3.56871934,211.9,211.82,17.2434633]
[1758684429873,3.56871934,211.89,211.82,17.2434633]
[1758684430191,39.98,211.96,211.82,17.2434633]
[1758684430377,3.56871934,211.89,211.82,17.2434633]
[1758684430700,3.56871934,211.87,211.82,4.72098951]
[1758684430997,3.56871934,211.86,211.8,4.72143531]
[1758684431693,25.9943108,211.93,211.8,4.72143531]
[1758684431694,14.19748704,211.93,211.8,4.72143531]
[1758684431871,3.56871934,211.9,211.81,0.72]
[1758684432183,3.56871934,211.89,211.81,0.72]
[1758684432576,3.56871934,211.86,211.8,4.72143531]
[1758684432781,3.56871934,211.85,211.78,4.72167136]
[1758684433089,3.56871934,211.82,211.77,11.80520903]
[1758684433389,3.56871934,211.83,211.77,11.80520903]
[1758684433683,3.56871934,211.84,211.77,11.80520903]
[1758684434190,3.56871934,211.84,211.76,0.67]
[1758684434392,3.56871934,211.82,211.76,0.67]
[1758684435187,3.56871934,211.82,211.77,4.72210416]
[1758684435585,3.56871934,211.81,211.72,5.39321934]
[1758684435895,3.56871934,211.8,211.72,17.2012677]
[1758684436700,26.0,211.87,211.71,36.1]
[1758684436701,3.56871934,211.77,211.71,36.1]
[1758684436996,40.11326096,211.9,211.71,36.1]
[1758684437168,3.56871934,211.78,211.71,36.1]
[1758684437492,3.56871934,211.77,211.71,52.63203822]
[1758684437794,3.56871934,211.77,211.71,40.82343211]
[1758684438806,3.56871934,211.77,211.71,40.32343211]
[1758684439780,4.72196321,211.78,211.71,40.32343211]
[1758684440276,3.56871934,211.76,211.71,40.32343211]
[1758684440597,3.56871934,211.76,211.71,41.04343211]
[1758684440984,30.721548,211.8,211.71,41.04343211]
[1758684441188,3.56871934,211.76,211.71,41.04343211]
[1758684441399,3.56871934,211.77,211.73,4.72299626]
[1758684441582,3.56871934,211.78,211.73,4.72299626]
[1758684441778,3.56871934,211.78,211.74,0.72]
[1758684442280,13.59559401,211.89,211.73,4.72299626]
[1758684442281,43.59102013,211.95,211.75,0.72]
[1758684442603,3.56871934,211.83,211.75,0.72]
[1758684442796,11.79710838,211.92,211.75,0.72]
[1758684443002,3.56871934,211.85,211.75,0.72]
[1758684443380,3.56871934,211.87,211.76,16.52814506]
[1758684443578,3.56871934,211.85,211.77,0.72]
[1758684444481,3.56871934,211.85,211.78,16.52658418]
[1758684444685,3.56871934,211.85,211.79,0.72]
[1758684445585,26.0,211.9,211.79,0.72]
[1758684445780,3.56871934,211.85,211.79,0.72]
[1758684446095,3.56871934,211.91,211.79,0.72]
[1758684446699,3.56871934,211.91,211.8,16.5250236]
[1758684446880,8.11789711,211.96,211.81,0.72]
[1758684447199,3.56871934,211.91,211.81,0.72]
[1758684447396,3.56871934,211.9,211.81,0.72]
[1758684447601,3.56871934,211.89,211.81,0.72]
[1758684448584,30.71869719,211.93,211.82,16.5234633]
[1758684448786,3.56871934,211.89,211.82,16.5234633]
[1758684448992,3.56871934,211.89,211.83,0.72]
[1758684449275,3.56871934,211.9,211.83,0.72]
[1758684449704,3.06871934,211.9,211.83,0.72]
[1758684450278,3.56871934,211.89,211.83,0.72]
[1758684450584,3.56871934,211.87,211.82,11.80247379]
[1758684451381,3.56871934,211.87,211.82,12.52247379]
[1758684451805,3.56871934,211.87,211.82,17.2434633]
[1758684452885,3.56871934,211.87,211.82,16.5234633]
[1758684453091,3.56871934,211.85,211.82,4.72098951]
[1758684453881,3.56871934,211.85,211.79,16.52549399]
[1758684454087,3.56871934,211.83,211.79,4.72165824]
[1758684455807,3.56871934,211.83,211.78,4.72188119]
[1758684455989,3.56871934,211.83,211.78,5.44188119]
[1758684456189,3.56871934,211.83,211.78,4.72188119]
[1758684456389,3.56871934,211.84,211.78,5.44188119]
[1758684458311,3.56871934,211.85,211.78,17.24658418]
[1758684458490,3.56871934,211.84,211.78,17.24658418]
[1758684459010,26.0,211.88,211.78,17.24658418]
[1758684459011,3.56871934,211.85,211.78,17.24658418]
[1758684459614,3.56871934,211.85,211.78,16.52658418]
[1758684459809,3.56871934,211.85,211.79,0.72]
[1758684460004,3.56871934,211.84,211.79,0.72]
[1758684460393,3.56871934,211.84,211.74,23.61353395]
[1758684460594,3.56871934,211.84,211.75,0.72]
[1758684461122,4.72000137,211.87,211.75,0.72]
[1758684461424,3.56871934,211.84,211.75,0.72]
[1758684462022,3.56871934,211.85,211.75,0.72]
[1758684462192,43.58357164,212.02,211.77,26.0]
[1758684462404,3.56871934,211.89,211.78,0.72]
[1758684462624,3.56871934,211.9,211.79,16.52580385]
[1758684462929,50.73212964,211.97,211.8,0.72]
[1758684462930,3.56871934,211.89,211.8,0.72]
[1758684463706,3.56871934,211.89,211.81,16.52424341]
[1758684464130,3.56871934,211.89,211.82,0.72]
[1758684464720,4.71876554,211.92,211.79,23.60829123]
[1758684464721,3.56871934,211.83,211.79,4.72144401]
[1758684465292,3.56871934,211.83,211.79,5.44144401]
[1758684465493,30.71876554,211.92,211.79,5.44144401]
[1758684465715,3.56871934,211.83,211.79,5.44144401]
[1758684466202,3.56871934,211.84,211.8,0.72]
[1758684466406,3.56871934,211.87,211.8,0.72]
[1758684466812,17.21981821,211.91,211.71,8.72902829]
[1758684467125,17.21981821,211.91,211.54,0.72]
[1758684467126,26.0,211.68,211.54,0.72]
[1758684467290,13.59559401,211.71,211.45,33.33333333]
[1758684467291,3.56871934,211.56,211.45,33.33333333]
[1758684467491,26.0,211.53,211.45,33.33333333]
[1758684467718,26.0,211.53,211.33,43.6178537]
[1758684467719,54.29729887,211.48,211.33,43.6178537]
[1758684467925,3.56871934,211.36,211.33,20.0]
[1758684468307,41.0,211.36,211.33,20.0]
[1758684468604,38.3,211.42,211.33,20.0]
[1758684469311,38.3,211.42,211.15,0.83494755]
[1758684469312,26.0,211.33,211.15,0.83494755]
[1758684469517,79.62,211.42,211.15,0.83494755]
[1758684469518,3.56871934,211.35,211.15,0.83494755]
[1758684469818,3.56871934,211.31,211.15,4.73587185]
[1758684470118,3.56871934,211.28,211.15,16.57579607]
[1758684470316,26.0,211.28,211.15,4.73587185]
[1758684470530,26.0,211.24,211.11,0.40409091]
[1758684470696,3.56871934,211.3,211.11,25.1408625]
[1758684470895,41.84,211.32,211.13,0.1]
[1758684471119,20.0,211.48,211.14,46.0]
[1758684471318,3.56871934,211.34,211.14,46.0]
[1758684471508,3.56871934,211.32,211.16,26.0]
[1758684471704,30.46,211.37,211.19,13.59559401]
[1758684471705,3.56871934,211.34,211.19,13.59559401]
[1758684471922,30.46,211.37,211.2,0.66]
[1758684472100,3.56871934,211.34,211.2,0.66]
[1758684472608,13.59559401,211.44,211.2,0.66]
[1758684472609,0.39,211.38,211.2,0.66]
[1758684472807,3.56871934,211.34,211.2,0.66]
[1758684473334,3.56871934,211.33,211.2,0.66]
[1758684473831,3.56871934,211.33,211.21,16.57118506]
[1758684474041,3.56871934,211.36,211.22,0.66]
[1758684474219,0.39,211.39,211.22,0.66]
[1758684474530,20.0,211.52,211.23,13.59559401]
[1758684474703,3.56871934,211.41,211.24,0.66]
[1758684475027,13.98559401,211.4,211.24,0.66]
[1758684475195,3.56871934,211.33,211.24,0.66]
[1758684475801,3.56871934,211.36,211.25,16.56804733]
[1758684476005,3.56871934,211.36,211.26,0.66]
[1758684476698,42.14,211.41,211.26,0.66]
[1758684476904,38.69,211.42,211.27,13.59559401]
[1758684476905,42.25871934,211.42,211.27,13.59559401]
[1758684477125,3.56871934,211.34,211.21,0.66]
[1758684477300,3.95871934,211.33,211.21,0.66]
[1758684477500,0.39,211.37,211.21,0.66]
[1758684477699,0.39,211.41,211.22,39.59559401]
[1758684477914,3.56871934,211.4,211.24,13.59559401]
[1758684478203,3.56871934,211.4,211.26,13.59559401]
[1758684478623,3.56871934,211.4,211.27,0.66]
[1758684478815,29.56871934,211.39,211.27,0.66]
[1758684479123,26.0,211.39,211.27,0.66]
[1758684479325,26.0,211.39,211.23,40.24049613]
[1758684479326,3.56871934,211.31,211.23,16.56961605]
[1758684479623,3.95871934,211.31,211.23,16.56961605]
[1758684479832,29.56871934,211.29,211.2,4.73484848]
[1758684480130,3.56871934,211.25,211.16,4.7357454]
[1758684480334,3.95871934,211.25,211.16,16.57510891]
[1758684480628,3.56871934,211.21,211.14,4.73604644]
[1758684480831,26.0,211.22,211.14,4.73604644]
[1758684481330,0.39,211.29,211.16,13.59559401]
[1758684481628,26.0,211.34,211.18,13.59559401]
[1758684481629,3.95871934,211.33,211.18,13.59559401]
[1758684481829,20.0,211.44,211.18,13.59559401]
[1758684481830,20.0,211.44,211.19,0.66]
[1758684482033,5.22712881,211.66,211.33,26.0]
[1758684482034,14.23994304,211.48,211.33,26.0]
[1758684482236,20.0,211.66,211.3,20.0]
[1758684482237,0.39,211.55,211.34,40.25559401]
[1758684482408,0.39,211.52,211.35,0.66]
[1758684482614,0.39,211.52,211.32,0.66]
[1758684482615,0.39,211.51,211.32,0.66]
[1758684482918,13.59559401,211.48,211.19,39.59559401]
[1758684483129,18.79,211.47,211.3,0.66]
[1758684483327,0.39,211.46,211.3,0.66]
[1758684483525,0.39,211.5,211.31,13.59559401]
[1758684483729,54.86075521,211.53,211.33,13.59559401]
[1758684484016,43.41,211.58,211.39,13.59559401]
[1758684484223,0.39,211.57,211.4,0.66]
[1758684484527,46.58871934,211.58,211.03,324.21237252]
[1758684484528,13.59559401,211.4,211.03,324.21237252]
[1758684484719,46.0,211.36,211.13,4.83635932]
[1758684484918,3.56871934,211.22,211.13,4.83635932]
[1758684485116,26.67,211.22,211.13,0.1]
[1758684485329,26.67,211.22,211.13,16.67738757]
[1758684485532,26.67,211.22,211.13,4.83634177]
[1758684485730,3.56871934,211.2,211.13,4.83634177]
[1758684486006,3.56871934,211.21,211.13,16.67738757]
[1758684486247,3.56871934,211.21,211.13,4.83634177]
[1758684486544,3.56871934,211.17,211.13,4.83634177]
[1758684486848,3.56871934,211.15,211.13,0.1]
[1758684487219,0.67,211.14,211.13,0.1]
[1758684487439,26.0,211.17,211.13,0.1]
[1758684487654,0.67,211.22,211.13,5.49634474]
[1758684487840,3.56871934,211.21,211.13,17.33739054]
[1758684488151,3.56871934,211.17,211.13,4.83634474]
[1758684488445,4.23871934,211.17,211.13,4.83634474]
[1758684488620,0.67,211.17,211.13,4.83634474]
[1758684489027,5.51048349,211.18,211.13,0.1]
[1758684489028,0.67,211.16,211.13,0.1]